bitfinex/quotes_SOLUSD_20241107
["timestamp","ask_amount","ask_price","bid_price","bid_amount"]
[1730962178099,8.05772925,186.16,186.1,8.05772925]
[1730962178504,8.05772925,186.17,186.1,8.05772925]
[1730962178719,8.05772925,186.17,186.11,8.05772925]
[1730962179208,6.6222,186.23,186.13,8.05772925]
[1730962179414,8.05772925,186.19,186.13,8.05772925]
[1730962179817,8.05772925,186.19,186.07,0.0744025]
[1730962180015,8.05772925,186.18,186.12,8.05772925]
[1730962180521,8.05772925,186.2,186.14,8.05772925]
[1730962180688,8.05772925,186.19,186.13,8.05772925]
[1730962180884,5.5080829,186.21,186.07,0.1744025]
[1730962180885,13.56581215,186.21,186.14,8.05772925]
[1730962181109,8.05772925,186.2,186.14,8.05772925]
[1730962181313,8.05772925,186.2,186.13,8.05772925]
[1730962181813,8.05772925,186.2,186.14,8.05772925]
[1730962182015,13.56534359,186.21,186.14,8.05772925]
[1730962182214,8.05772925,186.2,186.14,8.05772925]
[1730962182895,5.50761434,186.21,186.15,8.05772925]
[1730962183095,8.05772925,186.22,186.16,8.05772925]
[1730962183420,5.51079374,186.23,186.19,8.05772925]
[1730962183652,8.05772925,186.25,186.19,8.05772925]
[1730962183919,8.05772925,186.24,186.18,8.05772925]
[1730962184094,8.05772925,186.25,186.19,8.05772925]
[1730962184992,8.05772925,186.25,186.14,23.0479]
[1730962185199,8.05772925,186.23,186.17,8.05772925]
[1730962185420,8.05772925,186.22,186.16,8.05772925]
[1730962185597,8.05772925,186.24,186.18,8.05772925]
[1730962186011,22.0294,186.28,186.2,8.05772925]
[1730962186513,8.05772925,186.26,186.2,8.05772925]
[1730962187193,8.05772925,186.26,186.15,0.0744025]
[1730962187401,8.05772925,186.25,186.15,0.1]
[1730962187602,8.05772925,186.25,186.19,8.05772925]
[1730962189705,8.05772925,186.27,186.21,8.05772925]
[1730962190023,8.05772925,186.28,186.22,8.05772925]
[1730962191025,8.05772925,186.27,186.21,8.05772925]
[1730962191226,8.05772925,186.26,186.2,8.05772925]
[1730962191413,8.05772925,186.24,186.17,8.05772925]
[1730962191620,8.05772925,186.24,186.18,8.05772925]
[1730962191811,5.51154597,186.31,186.19,8.05772925]
[1730962192014,8.05772925,186.25,186.19,8.05772925]
[1730962193232,8.05772925,186.26,186.2,8.05772925]
[1730962193733,8.05772925,186.27,186.21,8.05772925]
[1730962194239,8.05772925,186.26,186.2,8.05772925]
[1730962194617,5.51154597,186.31,186.2,8.05772925]
[1730962194820,8.05772925,186.26,186.2,8.05772925]
[1730962195934,5.51154597,186.31,186.21,8.05772925]
[1730962196231,8.05772925,186.27,186.21,8.05772925]
[1730962197724,5.51154597,186.31,186.22,23.57482925]
[1730962197929,8.05772925,186.29,186.23,8.05772925]
[1730962198330,8.05772925,186.29,186.22,23.57482925]
[1730962198529,16.0021,186.32,184.25,0.10411759]
[1730962198530,8.05772925,186.27,186.18,15.6498]
[1730962198710,8.05772925,186.27,186.2,8.05772925]
[1730962198910,8.05772925,186.26,186.2,8.05772925]
[1730962199541,8.05772925,186.27,186.2,8.05772925]
[1730962200417,8.05772925,186.27,186.21,8.05772925]
[1730962201037,8.05772925,186.27,186.2,8.05772925]
[1730962201329,16.0021,186.32,186.18,15.6498]
[1730962201330,8.05772925,186.28,186.22,8.05772925]
[1730962201514,8.05772925,186.27,186.2,8.05772925]
[1730962201716,8.05772925,186.26,186.2,8.05772925]
[1730962202237,8.05772925,186.26,186.18,15.6498]
[1730962202238,8.05772925,186.28,186.22,8.05772925]
[1730962202612,8.05772925,186.28,186.21,8.05772925]
[1730962203033,8.05772925,186.28,186.22,8.05772925]
[1730962203415,8.05772925,186.29,186.22,8.05772925]
[1730962203915,8.05772925,186.29,186.21,0.0744025]
[1730962203916,8.05772925,186.29,186.23,8.05772925]
[1730962204336,16.0021,186.32,186.22,8.05772925]
[1730962204539,8.05772925,186.29,186.22,8.05772925]
[1730962205035,8.05772925,186.26,186.18,15.7242025]
[1730962205234,8.05772925,186.26,186.19,8.05772925]
[1730962205542,8.05772925,186.26,186.2,8.05772925]
[1730962206316,8.05772925,186.26,186.18,15.7242025]
[1730962206544,8.05772925,186.26,186.19,8.05772925]
[1730962207335,23.776884,186.31,186.19,8.05772925]
[1730962207639,8.05772925,186.26,186.2,8.05772925]
[1730962207939,8.05772925,186.27,186.2,8.05772925]
[1730962208136,8.05772925,186.28,186.21,8.05772925]
[1730962209325,8.05772925,186.27,186.21,8.05772925]
[1730962210041,16.0021,186.32,186.23,8.05772925]
[1730962210241,8.05772925,186.3,186.24,8.05772925]
[1730962210837,8.05772925,186.29,186.22,8.05772925]
[1730962211042,8.05772925,186.27,186.21,14.55082925]
[1730962211240,8.05772925,186.25,186.18,15.7242025]
[1730962211438,8.05772925,186.25,186.19,8.05772925]
[1730962211641,8.05772925,186.25,186.18,23.78193175]
[1730962211941,8.05772925,186.25,186.19,8.05772925]
[1730962212120,8.05772925,186.26,186.19,8.05772925]
[1730962213045,8.05772925,186.26,186.2,8.05772925]
[1730962213344,8.05772925,186.27,186.2,8.05772925]
[1730962214342,8.05772925,186.28,186.21,8.05772925]
[1730962214637,8.05772925,186.28,186.19,0.1998925]
[1730962214638,8.05772925,186.28,186.22,8.05772925]
[1730962215549,8.05772925,186.28,186.21,8.05772925]
[1730962215743,5.51278112,186.34,186.24,8.05772925]
[1730962216039,8.05772925,186.31,186.25,8.05772925]
[1730962216625,8.05772925,186.3,186.24,8.05772925]
[1730962217541,8.05772925,186.31,186.25,8.05772925]
[1730962218028,5.51278112,186.34,186.25,8.05772925]
[1730962218229,5.51278112,186.34,186.26,8.05772925]
[1730962218438,8.05772925,186.32,186.26,8.05772925]
[1730962219928,5.51278112,186.34,186.27,8.05772925]
[1730962220255,13.57051037,186.34,186.28,8.05772925]
[1730962220430,13.57051037,186.34,186.26,0.0744025]
[1730962220431,5.51278112,186.34,186.29,8.05772925]
[1730962220748,48.520617,186.4,186.25,23.1125]
[1730962220749,16.2897,186.4,186.25,23.1125]
[1730962220932,8.05772925,186.32,186.26,8.05772925]
[1730962221125,6.5427,186.38,186.24,8.05772925]
[1730962221329,8.05772925,186.32,186.25,8.05772925]
[1730962222057,6.5427,186.38,186.26,8.05772925]
[1730962222351,8.05772925,186.33,186.26,8.05772925]
[1730962222722,8.05772925,186.33,186.27,8.05772925]
[1730962222928,8.05772925,186.34,186.28,8.05772925]
[1730962223145,6.5427,186.38,186.24,0.1]
[1730962223146,8.05772925,186.35,186.29,8.05772925]
[1730962223346,8.05772925,186.36,186.3,8.05772925]
[1730962223535,14.60042925,186.38,186.32,8.05772925]
[1730962223857,8.05772925,186.38,186.32,8.05772925]
[1730962224043,16.2897,186.4,186.33,8.05772925]
[1730962224241,16.2897,186.4,186.3,0.1]
[1730962224242,8.05772925,186.4,186.34,8.05772925]
[1730962224854,8.05772925,186.41,186.35,8.05772925]
[1730962225056,8.05772925,186.42,186.36,8.05772925]
[1730962226157,8.05772925,186.43,186.37,8.05772925]
[1730962226660,16.098,186.45,186.37,8.05772925]
[1730962226961,8.05772925,186.43,186.37,8.05772925]
[1730962227137,8.05772925,186.43,186.38,8.05772925]
[1730962227831,6.4199,186.47,186.38,8.05772925]
[1730962228037,8.05772925,186.45,186.35,20.2998925]
[1730962228350,6.4199,186.47,186.39,8.05772925]
[1730962228532,15.1258,186.49,186.41,8.05772925]
[1730962228731,8.05772925,186.48,186.42,8.05772925]
[1730962228959,8.05772925,186.49,186.43,8.05772925]
[1730962229135,15.1665,186.54,186.45,8.05772925]
[1730962229337,8.05772925,186.51,186.45,8.05772925]
[1730962230037,8.05772925,186.53,186.47,8.05772925]
[1730962230433,8.05772925,186.53,186.46,8.05772925]
[1730962230755,8.05772925,186.49,186.43,31.83461325]
[1730962230936,8.05772925,186.47,186.41,8.05772925]
[1730962231433,8.05772925,186.46,186.37,15.1645]
[1730962231756,8.05772925,186.44,186.37,15.1645]
[1730962231957,8.05772925,186.44,186.38,8.05772925]
[1730962232131,23.776884,186.49,186.4,8.05772925]
[1730962232331,23.902374,186.53,186.4,8.05772925]
[1730962232537,23.902374,186.53,186.41,8.05772925]
[1730962232845,8.05772925,186.5,186.44,8.05772925]
[1730962233165,8.05772925,186.53,186.47,8.05772925]
[1730962233342,6.4912,186.56,186.47,12.54022469]
[1730962233545,12.54022469,186.53,186.47,12.54022469]
[1730962233866,6.4912,186.56,186.42,6.20779]
[1730962233867,12.54022469,186.52,186.46,12.54022469]
[1730962234051,6.4912,186.56,186.44,12.54022469]
[1730962234255,12.54022469,186.54,186.48,12.54022469]
[1730962234960,12.54022469,186.55,186.48,12.54022469]
[1730962235347,12.54022469,186.54,186.48,12.54022469]
[1730962235856,12.54022469,186.55,186.49,12.54022469]
[1730962236069,11.91956791,186.6,186.54,12.54022469]
[1730962236242,18.95032469,186.6,186.54,12.54022469]
[1730962236438,15.2501,186.63,186.55,12.54022469]
[1730962236648,12.54022469,186.59,186.5,43.776884]
[1730962236848,12.54022469,186.59,186.53,12.54022469]
[1730962237360,12.54022469,186.58,186.49,6.4419]
[1730962237675,0.12549,186.62,186.51,12.54022469]
[1730962237961,12.54022469,186.58,186.51,12.54022469]
[1730962238690,12.54022469,186.58,186.52,12.54022469]
[1730962238876,12.54022469,186.59,186.53,12.54022469]
[1730962239169,12.54022469,186.61,186.55,12.54022469]
[1730962239355,15.2501,186.63,186.52,0.0744025]
[1730962239356,12.54022469,186.62,186.56,12.54022469]
[1730962239566,12.54022469,186.63,186.57,12.54022469]
[1730962239955,12.54022469,186.64,186.58,12.54022469]
[1730962240146,12.54022469,186.63,186.57,12.54022469]
[1730962240567,12.54022469,186.64,186.58,12.54022469]
[1730962240766,12.54022469,186.64,186.54,0.1998925]
[1730962240767,12.54022469,186.64,186.57,12.54022469]
[1730962240967,12.54022469,186.62,186.53,16.6617]
[1730962241151,12.54022469,186.59,186.53,16.6617]
[1730962241350,12.54022469,186.59,186.53,29.20192469]
[1730962241675,12.54022469,186.6,186.54,12.54022469]
[1730962241872,12.54022469,186.62,186.55,12.54022469]
[1730962242059,12.54022469,186.61,186.54,12.54022469]
[1730962242368,12.54022469,186.61,186.55,12.54022469]
[1730962242672,12.54022469,186.64,186.58,12.54022469]
[1730962242846,0.5782066,186.65,186.59,12.54022469]
[1730962243054,0.5782066,186.65,186.6,12.54022469]
[1730962243858,0.5782066,186.65,186.58,0.0744025]
[1730962244053,0.5782066,186.65,186.6,12.54022469]
[1730962245380,13.11843129,186.65,186.56,0.0744025]
[1730962245583,13.11843129,186.65,186.58,12.54022469]
[1730962245757,12.54022469,186.64,186.58,12.54022469]
[1730962246080,12.54022469,186.63,186.57,12.54022469]
[1730962246562,12.54022469,186.62,186.56,12.54022469]
[1730962246763,12.54022469,186.62,186.56,36.39151119]
[1730962246970,12.54022469,186.63,186.57,12.54022469]
[1730962247368,12.54022469,186.62,186.56,12.54022469]
[1730962247775,12.54022469,186.61,186.55,12.54022469]
[1730962247984,12.54022469,186.57,186.53,16.6617]
[1730962248157,12.54022469,186.57,186.5,12.54022469]
[1730962248482,15.3788,186.63,186.52,12.54022469]
[1730962248483,0.12549,186.62,186.52,12.54022469]
[1730962248657,12.54022469,186.57,186.49,22.8161]
[1730962248860,12.54022469,186.57,186.51,12.54022469]
[1730962249059,12.54022469,186.57,186.5,12.54022469]
[1730962249486,12.54022469,186.56,186.5,12.54022469]
[1730962249682,12.54022469,186.55,186.49,35.35632469]
[1730962249867,12.54022469,186.56,186.5,12.54022469]
[1730962250963,12.54022469,186.57,186.5,12.54022469]
[1730962251273,12.54022469,186.56,186.5,12.54022469]
[1730962251469,12.54022469,186.57,186.5,12.54022469]
[1730962251680,15.3788,186.63,186.53,12.54022469]
[1730962251881,12.54022469,186.58,186.51,12.54022469]
[1730962252764,12.54022469,186.57,186.51,12.54022469]
[1730962253086,12.54022469,186.55,186.49,35.35632469]
[1730962253264,12.54022469,186.54,186.49,22.8161]
[1730962253473,12.54022469,186.55,186.49,22.8161]
[1730962253773,12.54022469,186.56,186.5,12.54022469]
[1730962254684,12.54022469,186.55,186.49,35.35632469]
[1730962254866,12.54022469,186.54,186.49,16.3742]
[1730962255070,12.54022469,186.53,186.47,43.776884]
[1730962255272,12.54022469,186.52,186.47,43.776884]
[1730962255591,12.54022469,186.53,186.47,43.776884]
[1730962255801,12.54022469,186.53,186.47,56.31710869]
[1730962255970,12.54022469,186.53,186.47,12.54022469]
[1730962256369,12.54022469,186.52,186.46,12.54022469]
[1730962256592,12.66571469,186.6,186.46,12.54022469]
[1730962256593,12.54022469,186.53,186.47,12.54022469]
[1730962256884,12.66571469,186.6,186.5,12.54022469]
[1730962256885,12.54022469,186.57,186.5,12.54022469]
[1730962257107,12.54022469,186.6,186.53,12.54022469]
[1730962257386,19.11432469,186.61,186.54,12.54022469]
[1730962257595,15.3788,186.63,186.54,12.54022469]
[1730962257596,12.54022469,186.6,186.54,12.54022469]
[1730962257891,12.54022469,186.59,186.53,12.54022469]
[1730962258073,12.54022469,186.6,186.54,12.54022469]
[1730962258275,12.54022469,186.61,186.55,12.54022469]
[1730962258487,12.54022469,186.63,186.57,12.54022469]
[1730962258990,12.54022469,186.63,186.56,12.54022469]
[1730962259369,12.54022469,186.62,186.56,12.54022469]
[1730962259582,6.7368066,186.65,186.53,92.404]
[1730962259583,0.5782066,186.65,186.61,12.54022469]
[1730962259784,0.5782066,186.65,186.62,12.54022469]
[1730962260680,0.5782066,186.65,186.63,12.54022469]
[1730962260866,0.5782066,186.65,186.62,12.54022469]
[1730962261176,0.5782066,186.65,186.63,12.54022469]
[1730962261494,0.5782066,186.65,186.62,12.54022469]
[1730962261681,0.5782066,186.65,186.61,12.54022469]
[1730962262498,13.11843129,186.65,186.59,12.54022469]
[1730962262697,13.11843129,186.65,186.56,0.0744025]
[1730962262698,12.54022469,186.63,186.57,12.54022469]
[1730962263289,12.54022469,186.64,186.58,12.54022469]
[1730962263591,0.5782066,186.65,186.63,12.54022469]
[1730962263766,0.5782066,186.65,186.62,12.54022469]
[1730962263972,0.5782066,186.65,186.6,15.6019025]
[1730962263973,0.5782066,186.65,186.61,12.54022469]
[1730962265486,0.5782066,186.65,186.62,12.54022469]
[1730962266378,0.5782066,186.65,186.61,36.31710869]
[1730962267197,0.5782066,186.65,186.62,12.54022469]
[1730962267597,0.5782066,186.65,186.61,36.31710869]
[1730962267978,0.5782066,186.65,186.6,15.5275]
[1730962267979,0.5782066,186.65,186.6,12.54022469]
[1730962268294,0.5782066,186.65,186.55,15.4622]
[1730962268295,12.54022469,186.63,186.57,12.54022469]
[1730962268594,0.5782066,186.65,186.6,12.54022469]
[1730962268801,0.5782066,186.65,186.5,15.0409]
[1730962268989,12.54022469,186.6,186.5,15.0409]
[1730962269299,12.54022469,186.63,186.56,12.54022469]
[1730962270077,0.5782066,186.65,186.61,12.54022469]
[1730962270278,0.5782066,186.65,186.52,0.1]
[1730962270279,0.5782066,186.65,186.62,12.54022469]
[1730962270505,0.5782066,186.65,186.63,12.54022469]
[1730962271294,0.5782066,186.65,186.64,12.54022469]
[1730962273996,0.5782066,186.65,186.6,23.776884]
[1730962274187,13.11843129,186.65,186.57,0.1]
[1730962274386,0.5782066,186.65,186.62,12.54022469]
[1730962274695,0.5782066,186.65,186.61,12.54022469]
[1730962275101,0.5782066,186.65,186.6,12.54022469]
[1730962275988,0.5782066,186.65,186.61,12.54022469]
[1730962277108,0.5782066,186.65,186.64,12.54022469]
[1730962280187,0.5782066,186.65,186.64,32.54022469]
[1730962280807,0.5782066,186.65,186.64,12.54022469]
[1730962281181,0.5782066,186.65,186.64,12.66571469]
[1730962281387,0.5782066,186.65,186.64,51.87900119]
[1730962281687,0.5782066,186.65,186.64,51.70459869]
[1730962281888,0.5782066,186.65,186.64,51.77900119]
[1730962282199,0.5782066,186.65,186.64,71.70459869]
[1730962282404,0.5782066,186.65,186.64,71.77900119]
[1730962282811,0.5782066,186.65,186.64,71.70459869]
[1730962284383,0.5782066,186.65,186.64,51.57910869]
[1730962284585,0.5782066,186.65,186.64,12.54022469]
[1730962285393,0.5782066,186.65,186.64,36.44259869]
[1730962286511,0.5782066,186.65,186.64,126.61700119]
[1730962287497,0.5782066,186.65,186.64,126.51700119]
[1730962287711,0.5782066,186.65,186.64,126.61700119]
[1730962288103,12.54022469,186.78,186.72,12.54022469]
[1730962288287,12.54022469,186.77,186.71,12.54022469]
[1730962288603,12.54022469,186.78,186.72,12.54022469]
[1730962289183,12.54022469,186.77,186.71,12.54022469]
[1730962289807,12.54022469,186.78,186.71,12.54022469]
[1730962290486,12.54022469,186.78,186.72,12.54022469]
[1730962290913,34.43042469,186.79,186.73,12.54022469]
[1730962291414,12.54022469,186.77,186.71,12.54022469]
[1730962292097,0.5782066,186.83,186.69,0.12549]
[1730962292098,7.0258066,186.83,186.73,12.54022469]
[1730962292300,12.54022469,186.79,186.73,12.54022469]
[1730962293508,12.54022469,186.78,186.72,12.54022469]
[1730962293909,12.54022469,186.79,186.72,12.54022469]
[1730962294087,12.54022469,186.78,186.72,12.54022469]
[1730962294287,12.54022469,186.79,186.72,12.54022469]
[1730962294508,12.54022469,186.78,186.72,12.54022469]
[1730962294698,12.54022469,186.77,186.71,12.54022469]
[1730962295098,7.0258066,186.83,186.72,12.54022469]
[1730962295099,12.54022469,186.78,186.72,12.54022469]
[1730962297086,12.54022469,186.79,186.73,12.54022469]
[1730962298201,12.54022469,186.78,186.72,12.54022469]
[1730962298410,12.54022469,186.79,186.69,23.776884]
[1730962298722,12.54022469,186.78,186.72,12.54022469]
[1730962301596,12.54022469,186.79,186.72,12.54022469]
[1730962301797,12.54022469,186.77,186.71,12.54022469]
[1730962302203,12.54022469,186.78,186.72,12.54022469]
[1730962304410,12.54022469,186.79,186.73,12.54022469]
[1730962304806,12.54022469,186.78,186.72,12.54022469]
[1730962305115,0.12549,186.82,186.73,12.54022469]
[1730962305322,12.54022469,186.79,186.73,12.54022469]
[1730962305617,12.54022469,186.79,186.72,12.54022469]
[1730962305810,12.54022469,186.79,186.73,12.54022469]
[1730962306323,12.54022469,186.81,186.75,12.54022469]
[1730962306619,12.54022469,186.82,186.76,12.54022469]
[1730962307116,13.11843129,186.83,186.76,12.54022469]
[1730962308699,0.5782066,186.83,186.79,12.54022469]
[1730962309122,0.5782066,186.83,186.78,12.54022469]
[1730962309297,0.5782066,186.83,186.79,12.54022469]
[1730962309503,0.5782066,186.83,186.78,12.54022469]
[1730962315234,13.11843129,186.83,186.77,12.54022469]
[1730962316924,0.5782066,186.83,186.78,12.54022469]
[1730962317233,12.54022469,186.81,186.75,12.54022469]
[1730962317433,13.11843129,186.83,186.77,12.54022469]
[1730962317611,12.54022469,186.82,186.76,12.54022469]
[1730962318227,0.5782066,186.83,186.77,12.54022469]
[1730962318426,13.11843129,186.83,186.77,12.54022469]
[1730962318625,13.11843129,186.83,186.73,70.0]
[1730962318626,0.5782066,186.83,186.78,12.54022469]
[1730962319012,12.54022469,186.82,186.76,12.54022469]
[1730962319426,0.5782066,186.83,186.78,8.00160973]
[1730962320126,8.57981633,186.83,186.77,8.00160973]
[1730962321221,0.5782066,186.83,186.78,8.00160973]
[1730962321609,8.57981633,186.83,186.77,8.00160973]
[1730962322030,8.57981633,186.83,186.76,8.00160973]
[1730962323745,0.5782066,186.83,186.79,8.00160973]
[1730962324236,0.5782066,186.83,186.78,8.00160973]
[1730962324440,0.5782066,186.83,186.75,20.0]
[1730962324628,0.5782066,186.83,186.78,8.00160973]
[1730962325433,0.5782066,186.83,186.79,8.00160973]
[1730962325937,0.5782066,186.83,186.78,8.00160973]
[1730962326143,8.00160973,186.81,186.75,28.00160973]
[1730962326447,0.5782066,186.83,186.75,28.00160973]
[1730962326448,0.5782066,186.83,186.78,8.00160973]
[1730962326748,0.5782066,186.83,186.79,8.00160973]
[1730962327247,0.5782066,186.83,186.78,8.00160973]
[1730962327448,0.5782066,186.83,186.79,8.00160973]
[1730962327745,32.00643892,186.9,186.79,8.00160973]
[1730962327746,27.07867603,186.94,186.82,23.56430973]
[1730962327943,21.4938,186.94,186.83,20.0]
[1730962328148,8.00160973,186.93,186.87,8.00160973]
[1730962328343,8.00160973,186.92,186.83,20.0]
[1730962328647,8.00160973,186.92,186.85,8.00160973]
[1730962328823,21.4938,186.94,186.84,8.00160973]
[1730962328824,8.00160973,186.91,186.84,8.00160973]
[1730962329026,8.00160973,186.89,186.79,43.776884]
[1730962329218,8.00160973,186.87,186.81,8.00160973]
[1730962329444,8.00160973,186.91,186.79,113.776884]
[1730962329642,8.00160973,186.88,186.82,13.3818]
[1730962331233,0.12549,186.93,186.83,8.00160973]
[1730962331435,8.00160973,186.89,186.83,8.00160973]
[1730962331644,8.00160973,186.88,186.82,21.38340973]
[1730962332024,8.00160973,186.87,186.82,13.3818]
[1730962332222,8.00160973,186.88,186.82,21.38340973]
[1730962333163,8.00160973,186.89,186.83,8.00160973]
[1730962334256,0.12549,186.93,186.79,43.776884]
[1730962334257,0.12549,186.93,186.84,8.00160973]
[1730962334450,8.00160973,186.91,186.85,8.00160973]
[1730962334744,8.00160973,186.92,186.86,8.00160973]
[1730962335457,8.00160973,186.92,186.81,70.0]
[1730962335762,8.00160973,186.91,186.85,8.00160973]
[1730962336057,8.00160973,186.92,186.86,8.00160973]
[1730962337454,8.00160973,186.93,186.87,8.00160973]
[1730962337839,29.49540973,186.94,186.88,8.00160973]
[1730962338530,8.00160973,186.94,186.88,8.00160973]
[1730962339128,8.00160973,186.95,186.89,8.00160973]
[1730962339335,0.12549,186.98,186.85,43.776884]
[1730962339336,8.00160973,186.94,186.85,43.776884]
[1730962339541,8.00160973,186.94,186.88,8.00160973]
[1730962339930,0.12549,186.98,186.88,8.00160973]
[1730962340140,21.719,186.99,186.85,43.776884]
[1730962340141,15.4218,186.99,186.96,8.00160973]
[1730962340358,0.5782066,187.02,186.95,8.00160973]
[1730962340359,8.00160973,187.01,186.95,8.00160973]
[1730962340526,8.00160973,187.0,186.94,8.00160973]
[1730962340729,0.5782066,187.02,186.9,43.776884]
[1730962340730,8.00160973,186.98,186.9,43.776884]
[1730962340935,0.12549,187.01,186.9,28.00160973]
[1730962341131,8.00160973,186.96,186.9,28.00160973]
[1730962341337,8.00160973,186.98,186.92,8.00160973]
[1730962341573,8.00160973,186.97,186.91,8.00160973]
[1730962341732,8.00160973,186.96,186.9,8.00160973]
[1730962341933,0.12549,187.01,186.86,20.0]
[1730962341934,8.00160973,186.93,186.86,20.0]
[1730962342127,8.00160973,186.93,186.84,15.4251]
[1730962342128,8.00160973,186.91,186.84,15.4251]
[1730962342438,8.00160973,186.93,186.87,8.00160973]
[1730962342841,15.0037,186.95,186.88,8.00160973]
[1730962343046,8.00160973,186.94,186.88,8.00160973]
[1730962343236,8.00160973,186.93,186.87,8.00160973]
[1730962343458,8.00160973,186.92,186.86,8.00160973]
[1730962344159,15.0037,186.95,186.85,20.0]
[1730962344160,8.00160973,186.93,186.87,8.00160973]
[1730962345036,17.99620367,186.92,186.88,8.00160973]
[1730962345254,12.30888333,186.92,186.85,20.0]
[1730962345552,4.3072736,186.92,186.86,8.00160973]
[1730962345733,4.3072736,186.92,186.87,8.00160973]
[1730962346349,8.00160973,186.93,186.87,8.00160973]
[1730962347439,15.0037,186.95,186.88,8.00160973]
[1730962347759,8.00160973,186.93,186.86,8.00160973]
[1730962347958,8.00160973,186.92,186.85,20.0]
[1730962348166,8.00160973,186.91,186.85,8.00160973]
[1730962348453,8.00160973,186.89,186.82,12.49837731]
[1730962348798,8.00160973,186.89,186.83,8.00160973]
[1730962349049,8.00160973,186.88,186.82,8.00160973]
[1730962349252,23.902374,186.94,186.83,8.00160973]
[1730962349557,8.00160973,186.89,186.82,8.00160973]
[1730962349938,8.00160973,186.88,186.79,15.0111]
[1730962350255,8.00160973,186.82,186.74,16.037]
[1730962350429,0.12549,186.87,186.73,6.51988904]
[1730962350430,8.00160973,186.78,186.73,6.51988904]
[1730962350626,23.902374,186.87,186.71,2.14064742]
[1730962350627,8.00160973,186.76,186.71,2.14064742]
[1730962350828,21.4433,186.79,186.73,8.00160973]
[1730962351066,0.1,186.85,186.69,2.1408741]
[1730962351067,0.12549,186.83,186.69,2.1408741]
[1730962351355,8.00160973,186.79,186.73,8.00160973]
[1730962351537,21.4433,186.84,186.74,8.00160973]
[1730962351856,8.00160973,186.81,186.75,8.00160973]
[1730962352432,21.4433,186.84,186.77,8.00160973]
[1730962352647,21.4433,186.84,186.78,8.00160973]
[1730962352958,37.59337969,186.9,186.79,8.00160973]
[1730962352959,8.00160973,186.85,186.79,8.00160973]
[1730962353343,8.00160973,186.85,186.78,8.00160973]
[1730962354158,8.00160973,186.86,186.8,8.00160973]
[1730962354554,8.00160973,186.88,186.82,8.00160973]
[1730962354856,22.7631,186.89,186.82,8.00160973]
[1730962355050,30.76470973,186.89,186.82,8.00160973]
[1730962355361,8.00160973,186.88,186.82,8.00160973]
[1730962355566,30.76470973,186.89,186.82,8.00160973]
[1730962355755,22.7631,186.89,186.84,8.00160973]
[1730962355955,30.76470973,186.89,186.83,8.00160973]
[1730962356966,8.00160973,186.88,186.82,8.00160973]
[1730962357157,8.00160973,186.88,186.81,8.00160973]
[1730962357459,8.00160973,186.88,186.82,8.00160973]
[1730962357969,22.7631,186.89,186.83,8.00160973]
[1730962358166,15.4224,186.94,186.83,8.00160973]
[1730962358478,8.00160973,186.9,186.83,8.00160973]
[1730962358763,8.00160973,186.91,186.84,8.00160973]
[1730962359256,0.12549,186.93,186.79,70.0]
[1730962359459,0.12549,186.93,186.84,8.00160973]
[1730962359460,8.00160973,186.91,186.84,8.00160973]
[1730962360176,8.00160973,186.92,186.86,8.00160973]
[1730962360350,8.00160973,186.92,186.85,8.00160973]
[1730962360673,8.00160973,186.92,186.86,8.00160973]
[1730962360844,8.00160973,186.92,186.82,20.12549]
[1730962360845,8.00160973,186.91,186.84,8.00160973]
[1730962361051,8.00160973,186.9,186.83,8.00160973]
[1730962361768,8.00160973,186.89,186.82,51.77849373]
[1730962362145,8.00160973,186.9,186.84,8.00160973]
[1730962362341,15.4224,186.94,186.84,8.00160973]
[1730962362550,15.4224,186.94,186.87,8.00160973]
[1730962362764,23.42400973,186.94,186.87,8.00160973]
[1730962363066,15.4224,186.94,186.87,8.00160973]
[1730962363374,8.00160973,186.93,186.87,8.00160973]
[1730962363553,5.58401327,186.98,186.89,31.77849373]
[1730962363879,8.00160973,186.98,186.92,8.00160973]
[1730962364170,8.00160973,186.99,186.93,8.00160973]
[1730962364544,8.00160973,186.98,186.92,8.00160973]
[1730962364949,21.5297,187.0,186.92,8.00160973]
[1730962365170,8.00160973,186.99,186.92,8.00160973]
[1730962365477,8.00160973,186.98,186.92,8.00160973]
[1730962365770,8.00160973,186.99,186.93,8.00160973]
[1730962367169,23.34530973,187.0,186.93,8.00160973]
[1730962367373,8.00160973,186.98,186.9,20.12549]
[1730962367554,8.00160973,186.98,186.92,20.0]
[1730962367757,15.3437,187.0,186.93,31.77849373]
[1730962367962,23.34530973,187.0,186.93,31.77849373]
[1730962368170,8.00160973,186.99,186.93,31.77849373]
[1730962369174,8.00160973,186.98,186.92,28.00160973]
[1730962370963,15.3437,187.0,186.89,8.00160973]
[1730962371258,8.00160973,186.9,186.82,15.1435]
[1730962371468,8.00160973,186.89,186.83,8.00160973]
[1730962371974,21.8742,187.0,186.88,8.00160973]
[1730962372179,23.34530973,187.0,186.93,8.00160973]
[1730962372673,8.00160973,186.99,186.93,8.00160973]
[1730962372874,23.34530973,187.0,186.93,8.00160973]